bitfinex/quotes_BTCUSD_20250108
["timestamp","ask_amount","ask_price","bid_price","bid_amount"]
[1736348834355,0.208322,96005.0,95966.0,0.00050677]
[1736348834356,0.02118185,95990.0,95969.0,0.001]
[1736348834567,0.02118185,95990.0,95980.0,0.0065954]
[1736348834781,0.29184392,95990.0,95969.0,0.001]
[1736348835012,0.07064,95995.0,95977.0,0.0065954]
[1736348835235,0.208322,96005.0,95970.0,0.10429976]
[1736348835236,0.208322,96005.0,95984.0,0.09999965]
[1736348835455,0.15632,96046.0,95998.0,0.10659505]
[1736348835456,0.20827,96029.0,95998.0,0.10659505]
[1736348835704,0.10200244,96041.0,95989.0,0.09999965]
[1736348835705,0.29184392,96010.0,95989.0,0.09999965]
[1736348835922,0.208341,95997.0,95989.0,0.09999965]
[1736348836147,0.208325,96004.0,95984.0,0.0065954]
[1736348836360,0.208403,95968.0,95960.0,0.0065954]
[1736348836577,0.208403,95968.0,95941.0,0.18313384]
[1736348836578,0.208403,95968.0,95946.0,0.09999965]
[1736348836787,0.36248392,95970.0,95966.0,0.00050677]
[1736348836998,0.2084,95969.0,95966.0,0.00050677]
[1736348837851,0.208404,95967.0,95966.0,0.00050677]
[1736348838352,0.279044,95967.0,95966.0,0.00134401]
[1736348839198,0.208404,95967.0,95966.0,0.00134401]
[1736348840046,0.20827875,95967.0,95966.0,0.00134401]
[1736348840491,0.006,95969.0,95966.0,0.00134401]
[1736348840700,0.20839,95974.0,95968.0,0.09999965]
[1736348840924,0.07068,95983.0,95968.0,0.09999965]
[1736348841150,0.208391,95974.0,95969.0,0.00648825]
[1736348841369,0.208391,95974.0,95968.0,0.09999965]
[1736348841588,0.07068,95982.0,95966.0,0.00034401]
[1736348841589,0.4168,95969.0,95966.0,0.00034401]
[1736348841826,0.4188,95969.0,95966.0,0.00034401]
[1736348842243,0.002,95969.0,95968.0,0.10099965]
[1736348842465,0.002,95969.0,95968.0,0.21089481]
[1736348842674,0.002,95969.0,95968.0,0.21738739]
[1736348842850,0.003,95969.0,95968.0,0.21738739]
[1736348843384,0.001,95969.0,95968.0,0.01308798]
[1736348843603,0.001,95969.0,95966.0,0.00034401]
[1736348843807,0.208402,95968.0,95966.0,0.00034401]
[1736348844244,0.19770436,95967.0,95966.0,0.00034401]
[1736348844451,0.19770436,95967.0,95966.0,0.00134401]
[1736348844682,0.208501,95923.0,95921.0,0.0001702]
[1736348844897,0.07068,95934.0,95921.0,0.00067757]
[1736348845103,0.0934046,95952.0,95926.0,0.09999965]
[1736348845308,0.208483,95931.0,95926.0,0.09999965]
[1736348845515,0.208463,95940.0,95932.0,0.09999965]
[1736348845730,0.208409,95965.0,95937.0,0.0065954]
[1736348845985,0.29184392,95960.0,95927.0,0.00667022]
[1736348846191,0.13538112,95964.0,95921.0,0.00067757]
[1736348846192,0.0934046,95944.0,95921.0,0.00067757]
[1736348846398,0.208502,95922.0,95921.0,0.00067757]
[1736348846806,0.208491,95928.0,95921.0,0.00067757]
[1736348847008,0.001,95934.0,95933.0,0.09999965]
[1736348847221,0.003,95934.0,95933.0,0.09999965]
[1736348847422,0.003,95934.0,95933.0,0.10659505]
[1736348847628,0.002,95934.0,95933.0,0.10659505]
[1736348847836,0.002,95934.0,95933.0,0.21089481]
[1736348848042,0.208435,95953.0,95948.0,0.0065954]
[1736348848248,0.208438,95952.0,95948.0,0.11089516]
[1736348848448,0.208438,95952.0,95948.0,0.0065954]
[1736348848655,0.208451,95946.0,95943.0,0.09999965]
[1736348848876,0.10429976,95967.0,95935.0,0.09999965]
[1736348849091,0.10429976,95967.0,95941.0,0.0065954]
[1736348849298,0.20847,95937.0,95936.0,0.0065954]
[1736348849506,0.208466,95939.0,95936.0,0.0065954]
[1736348849704,0.208466,95939.0,95937.0,0.0065954]
[1736348850158,0.208466,95939.0,95933.0,0.006]
[1736348850159,0.208476,95934.0,95933.0,0.004]
[1736348850365,0.208466,95939.0,95932.0,0.09999965]
[1736348850571,0.208476,95934.0,95932.0,0.09999965]
[1736348851057,0.208466,95939.0,95932.0,0.09999965]
[1736348851259,0.211466,95939.0,95932.0,0.09999965]
[1736348851489,0.003,95939.0,95938.0,0.09999965]
[1736348851701,0.208433,95954.0,95951.0,0.09999965]
[1736348851913,0.208445,95949.0,95944.0,0.09999965]
[1736348852122,0.02063745,95976.0,95945.0,0.10429976]
[1736348852338,0.208417,95962.0,95958.0,0.09999965]
[1736348852546,0.208437,95952.0,95951.0,0.0065954]
[1736348852743,0.208437,95952.0,95947.0,0.09999965]
[1736348852948,0.0934046,95967.0,95935.0,0.09999965]
[1736348853180,0.208468,95938.0,95935.0,0.09999965]
[1736348853388,0.0934046,95964.0,95935.0,0.09999965]
[1736348853389,0.20846,95942.0,95935.0,0.09999965]
[1736348853611,0.001,95939.0,95935.0,0.09999965]
[1736348853921,0.208467,95938.0,95935.0,0.09999965]
[1736348854364,0.003,95939.0,95935.0,0.10099965]
[1736348854568,0.20847,95937.0,95935.0,0.10099965]
[1736348854773,0.208468,95938.0,95935.0,0.10099965]
[1736348854990,0.20846,95942.0,95935.0,0.10099965]
[1736348855396,0.001,95938.0,95935.0,0.10099965]
[1736348855609,0.001,95938.0,95937.0,0.10659505]
[1736348855823,0.001,95938.0,95937.0,0.41936481]
[1736348856001,0.001,95938.0,95937.0,0.56936481]
[1736348856242,0.001,95938.0,95937.0,0.64616481]
[1736348856453,0.208402,95968.0,95965.0,0.09999965]
[1736348856593,0.208393,95973.0,95972.0,0.0065954]
[1736348856804,0.208393,95973.0,95950.0,0.15]
[1736348856805,0.208404,95968.0,95961.0,0.0065954]
[1736348857008,0.07092,95978.0,95957.0,0.09999965]
[1736348857184,0.20842,95960.0,95958.0,0.00653589]
[1736348857398,0.208444,95949.0,95948.0,0.0065954]
[1736348857602,0.208409,95965.0,95938.0,0.10429976]
[1736348857603,0.208464,95940.0,95938.0,0.10429976]
[1736348857801,0.0934046,95968.0,95939.0,0.00661821]
[1736348858119,0.208446,95948.0,95937.0,0.005]
[1736348858320,0.208421,95960.0,95952.0,0.09999965]
[1736348858488,0.208407,95966.0,95946.0,0.09999965]
[1736348858684,0.208429,95956.0,95953.0,0.00655755]
[1736348858928,0.10429976,95965.0,95941.0,0.0065954]
[1736348858929,0.208454,95945.0,95941.0,0.0065954]
[1736348859139,0.208463,95940.0,95939.0,0.001]
[1736348860108,0.208463,95940.0,95932.0,0.10050702]
[1736348860487,0.416951,95935.0,95932.0,0.00050737]
[1736348861678,0.208478,95933.0,95932.0,0.00050737]
[1736348862851,0.208468,95938.0,95932.0,0.00050737]
[1736348863063,0.208478,95933.0,95932.0,0.00050737]
[1736348863247,0.002,95935.0,95934.0,0.09999965]
[1736348863714,0.002,95935.0,95933.0,0.0065954]
[1736348863715,0.206166,95939.0,95935.0,0.09999965]
[1736348864340,0.208478,95934.0,95932.0,0.00150737]
[1736348864552,0.208478,95934.0,95932.0,0.00710277]
[1736348865577,0.199378,95934.0,95932.0,0.00710277]
[1736348865778,0.199378,95934.0,95932.0,0.00050737]
[1736348867376,0.01946609,95933.0,95932.0,0.21140218]
[1736348867597,0.01946609,95933.0,95932.0,0.01375132]
[1736348867800,0.01946609,95933.0,95932.0,0.36909316]
[1736348868003,0.01946609,95933.0,95932.0,0.51595073]
[1736348868489,0.002,95934.0,95933.0,0.231478]
[1736348868642,0.002,95934.0,95933.0,0.34237316]
[1736348868856,0.002,95934.0,95933.0,0.34901738]
[1736348869284,0.208412,95964.0,95953.0,0.208434]
[1736348869484,0.208412,95964.0,95956.0,0.0065954]
[1736348869650,0.208403,95968.0,95958.0,0.09999965]
[1736348869852,0.208359,95988.0,95957.0,0.01313562]
[1736348870078,0.208363,95986.0,95959.0,0.00653156]
[1736348870308,0.0822,96000.0,95961.0,0.10659505]
[1736348870513,0.0822,96000.0,95965.0,0.09999965]
[1736348870514,0.208392,95973.0,95965.0,0.09999965]
[1736348870751,0.416784,95973.0,95965.0,0.09999965]
[1736348870941,0.208377,95980.0,95966.0,0.00650124]
[1736348871177,0.208393,95973.0,95966.0,0.00650124]
[1736348871607,0.07096,95991.0,95972.0,0.0065954]
[1736348871774,0.208387,95975.0,95972.0,0.0065954]
[1736348872138,0.07092,96013.0,95984.0,0.09999965]
[1736348872345,0.208334,96000.0,95991.0,0.0065954]
[1736348872557,0.208313,96010.0,95998.0,0.09999965]
[1736348872775,0.208313,96010.0,95998.0,0.30833565]
[1736348872984,0.208313,96010.0,95999.0,0.0065341]
[1736348873175,0.52094876,96004.0,95999.0,0.0065341]
[1736348873612,0.07092,96003.0,95965.0,0.09999965]
[1736348873811,0.208396,95972.0,95966.0,0.09999965]
[1736348874027,0.208398,95970.0,95969.0,0.18312468]
[1736348874352,0.208398,95970.0,95969.0,0.18978866]
[1736348874948,0.208398,95970.0,95969.0,0.00666398]
[1736348875142,0.0934046,96017.0,95977.0,0.09999965]
[1736348875412,0.17521976,96004.0,95970.0,0.09999965]
[1736348875610,0.17521976,96004.0,95978.0,0.00662501]
[1736348875769,0.208385,95976.0,95975.0,0.0065954]
[1736348876177,0.17521976,96004.0,96003.0,24.369871]
[1736348876439,0.10429976,96004.0,96003.0,24.369871]
[1736348876591,0.17521976,96004.0,96003.0,24.369871]
[1736348876791,0.10929976,96004.0,96003.0,24.369871]
[1736348876995,0.18021976,96004.0,96003.0,24.369871]
[1736348877192,0.39754376,96004.0,96003.0,24.369871]
[1736348877455,0.39754376,96004.0,96003.0,24.37037837]
[1736348877661,0.38854376,96004.0,96003.0,24.37037837]
[1736348877871,0.38354376,96004.0,96003.0,24.37037837]
[1736348878049,0.39254376,96004.0,96003.0,24.37137837]
[1736348878256,0.38354376,96004.0,96003.0,24.37037837]
[1736348878434,0.47694836,96004.0,96003.0,24.37037837]
[1736348878638,0.32162376,96004.0,96003.0,24.37137837]
[1736348878856,0.47694836,96004.0,96003.0,24.37037837]
[1736348879204,0.31262376,96004.0,96003.0,24.37037837]
[1736348879332,0.38754376,96004.0,96003.0,24.37037837]
[1736348879850,0.208324,96004.0,96003.0,24.37037837]
[1736348880428,0.32162376,96004.0,96003.0,24.37137837]
[1736348880623,0.31262376,96004.0,96003.0,24.37037837]
[1736348881022,0.217324,96004.0,96003.0,24.37137837]
[1736348881237,0.279244,96004.0,96003.0,24.37037837]
[1736348881660,0.286244,96004.0,96003.0,24.37137837]
[1736348881854,0.39054376,96004.0,96003.0,24.37037837]
[1736348882059,0.38354376,96004.0,96003.0,24.37037837]
[1736348882263,0.38234376,96004.0,96003.0,24.37037837]
[1736348882667,0.31942376,96004.0,96003.0,24.37137837]
[1736348883098,0.288844,96004.0,96003.0,24.37137837]
[1736348883716,0.284844,96004.0,96003.0,24.37137837]
[1736348884098,0.287844,96004.0,96003.0,24.37137837]
[1736348884313,0.287844,96004.0,96003.0,24.37037837]
[1736348884314,0.003,96004.0,96003.0,24.37037837]
[1736348884713,0.012,96004.0,96003.0,24.37137837]
[1736348884914,0.012,96004.0,96003.0,24.58127318]
[1736348884915,0.003,96004.0,96003.0,24.58127318]
[1736348885119,0.0018,96004.0,96003.0,24.58127318]
[1736348885357,0.0108,96004.0,96003.0,24.47797342]
[1736348885522,0.208294,96018.0,96007.0,0.0065954]
[1736348885721,0.208256,96036.0,96003.0,24.37037837]
[1736348885722,0.20832,96006.0,96003.0,24.37037837]
[1736348885945,0.01,96004.0,96003.0,24.37137837]
[1736348886149,0.01,96004.0,96003.0,24.37797377]
[1736348886350,0.01,96004.0,96003.0,24.47797342]
[1736348886551,0.008,96004.0,96003.0,24.58227318]
[1736348887343,0.20826,96034.0,96013.0,0.0065954]
[1736348887344,0.208299,96016.0,96013.0,0.0065954]
[1736348887558,0.208323,96005.0,96003.0,24.37681016]
[1736348887762,0.17569976,96004.0,96003.0,24.37437837]
[1736348887969,0.17569976,96004.0,96003.0,24.37037837]
[1736348888395,0.41910436,96004.0,96003.0,24.37737837]
[1736348888568,0.41910436,96004.0,96003.0,22.12067837]
[1736348888786,0.10429976,96004.0,96003.0,22.12067837]
[1736348889013,0.17569976,96004.0,96003.0,22.12167837]
[1736348889187,0.10429976,96004.0,96003.0,22.12067837]
[1736348889394,0.208323,96005.0,96003.0,22.12067837]
[1736348891020,0.31262276,96005.0,96003.0,22.12067837]
[1736348891367,0.005,96004.0,96003.0,22.12167837]
[1736348891602,0.31262276,96005.0,96003.0,22.12067837]
[1736348892453,0.10429976,96004.0,96003.0,22.12067837]
[1736348892672,0.17449976,96004.0,96003.0,22.12067837]
[1736348894010,0.26790436,96004.0,96003.0,22.12067837]
[1736348894214,0.51860436,96004.0,96003.0,21.86897766]
[1736348894795,0.51860436,96004.0,96003.0,21.84814466]
[1736348895127,0.51860436,96004.0,96003.0,20.82724352]
[1736348895128,0.46128979,96004.0,96003.0,20.82724352]
[1736348895357,0.46128979,96004.0,96003.0,20.59172237]
[1736348895358,0.39588979,96004.0,96003.0,20.59172237]
[1736348895764,0.36688979,96004.0,96003.0,20.59072237]
[1736348895976,0.44332979,96004.0,96003.0,20.48755737]
[1736348896189,0.54671738,96004.0,96003.0,20.44556508]
[1736348896397,0.54171738,96004.0,96003.0,20.34078329]
[1736348896636,0.61772979,96004.0,96003.0,20.33978329]
[1736348896839,0.44332979,96004.0,96003.0,20.34178329]
[1736348897049,0.51679781,96004.0,96003.0,20.34178329]
[1736348897880,0.44694436,96004.0,96003.0,20.34178329]
[1736348898091,0.44694436,96004.0,96003.0,20.23761829]
[1736348898297,0.51360606,96004.0,96003.0,20.23561829]
[1736348898529,0.44594436,96004.0,96003.0,20.23661829]
[1736348898740,0.42394436,96004.0,96003.0,20.23761829]
[1736348898947,0.41894436,96004.0,96003.0,20.19495229]
[1736348899184,0.44574436,96004.0,96003.0,20.17511929]
[1736348899388,0.44074436,96004.0,96003.0,20.13245329]
[1736348899809,0.44574436,96004.0,96003.0,20.02928829]
[1736348900016,0.43974436,96004.0,96003.0,19.98605798]
[1736348900222,0.36830436,96004.0,96003.0,19.98605798]
[1736348900443,0.44074436,96004.0,96003.0,19.98705798]
[1736348900855,0.44074436,96004.0,96003.0,19.61912091]
[1736348901060,0.44074436,96004.0,96003.0,18.67445479]
[1736348901061,0.63943102,96004.0,96003.0,18.67445479]
[1736348901271,0.63943102,96004.0,96003.0,18.64345479]
[1736348901272,0.52963102,96004.0,96003.0,18.64345479]
[1736348901477,0.53463102,96004.0,96003.0,18.64445479]
[1736348901650,0.46219102,96004.0,96003.0,18.61245479]
[1736348901883,0.68603102,96004.0,96003.0,18.5009898]
[1736348902112,0.69103102,96004.0,96003.0,18.46252106]
[1736348902227,0.69103102,96004.0,96003.0,18.46895285]
[1736348902436,0.69003102,96004.0,96003.0,18.46795285]
[1736348902641,0.69003102,96004.0,96003.0,18.44711985]
[1736348902855,0.61959102,96004.0,96003.0,18.33524388]
[1736348903082,0.69103102,96004.0,96003.0,18.33524388]
[1736348903489,0.69103102,96004.0,96003.0,17.79796473]
[1736348903703,0.71194436,96004.0,96003.0,14.28045056]
[1736348903911,0.85084237,96004.0,96003.0,14.00444514]
[1736348904124,0.87233294,96004.0,96003.0,13.83231443]
[1736348904336,0.85084237,96004.0,96003.0,13.13561118]
[1736348904535,1.02202937,96004.0,96003.0,12.20174781]
[1736348904744,1.04020897,96004.0,96003.0,11.33818595]
[1736348904959,1.28396022,96004.0,96003.0,10.41557796]
[1736348905163,1.28396022,96004.0,96003.0,9.38445911]
[1736348905164,1.70196022,96004.0,96003.0,9.38445911]
[1736348905373,1.70196022,96004.0,96003.0,9.06856446]
[1736348905374,1.47412022,96004.0,96003.0,9.06856446]
[1736348905577,1.61500822,96004.0,96003.0,8.35808066]
[1736348905786,1.09187318,96004.0,96003.0,7.89550042]
[1736348905986,1.09187318,96004.0,96003.0,7.89650042]
[1736348905987,1.08838261,96004.0,96003.0,7.89650042]
[1736348906204,1.19396674,96004.0,96003.0,7.82772685]
[1736348906419,1.39902218,96004.0,96003.0,7.30043257]
[1736348906618,1.24190837,96004.0,96003.0,6.06999545]
[1736348906842,1.24190837,96004.0,96003.0,1.76876255]
[1736348906843,1.2988578,96004.0,96003.0,1.76876255]
[1736348907049,1.2988578,96004.0,95884.0,0.0831]
[1736348907050,0.0934046,95917.0,95884.0,0.0831]
[1736348907255,0.0934046,95907.0,95884.0,0.0831]
[1736348907462,0.55623936,95907.0,95906.0,0.02088898]
[1736348907667,0.3019396,95907.0,95906.0,0.02088898]
[1736348907871,0.208535,95907.0,95906.0,0.02088898]
[1736348908083,0.3019396,95907.0,95906.0,0.02088898]
[1736348908286,0.30201847,95907.0,95906.0,0.02088898]
[1736348908899,0.31101847,95907.0,95906.0,0.02088898]
[1736348909305,0.30401847,95907.0,95906.0,0.02088898]
[1736348909506,0.31301847,95907.0,95906.0,0.02088898]
[1736348909713,0.26701695,95907.0,95906.0,0.02088898]
[1736348909913,0.36231671,95907.0,95906.0,0.02088898]
[1736348910119,0.51531671,95907.0,95906.0,0.02088898]
[1736348910818,0.36531671,95907.0,95906.0,3.498e-05]
[1736348911482,0.37431671,95907.0,95906.0,3.498e-05]
[1736348911872,0.36231671,95907.0,95906.0,3.498e-05]
[1736348912069,0.36531671,95907.0,95906.0,3.498e-05]
[1736348912294,0.37431671,95907.0,95906.0,3.498e-05]
[1736348912472,0.36531671,95907.0,95906.0,3.498e-05]
[1736348912833,0.37131671,95907.0,95906.0,3.498e-05]
[1736348913031,0.37531671,95907.0,95906.0,3.498e-05]
[1736348913237,0.22217206,95907.0,95906.0,3.498e-05]
[1736348913443,7.887e-05,95907.0,95906.0,3.498e-05]
[1736348913577,0.26201847,95907.0,95906.0,3.498e-05]
[1736348913758,0.21261387,95907.0,95906.0,3.498e-05]
[1736348914393,0.208527,95911.0,95906.0,0.04713498]
[1736348914620,0.18315134,95913.0,95907.0,0.0856757]
[1736348915026,0.208531,95909.0,95907.0,0.0856757]
[1736348915251,0.208531,95909.0,95908.0,0.07068]
[1736348915676,0.208531,95909.0,95908.0,0.07645136]
[1736348915851,0.0534046,95928.0,95908.0,0.07645136]
[1736348916051,0.208526,95911.0,95908.0,0.18075112]
[1736348916252,0.417053,95911.0,95909.0,0.07068]
[1736348916458,0.417053,95911.0,95910.0,0.00576269]
[1736348916658,0.417053,95911.0,95907.0,0.0799]
[1736348916873,0.208533,95908.0,95906.0,0.00054295]
[1736348917069,0.10429976,95907.0,95906.0,0.00054295]
[1736348917518,0.208533,95908.0,95906.0,0.00054295]
[1736348917999,0.18492732,95908.0,95906.0,0.00054295]
[1736348919157,0.19392732,95908.0,95906.0,0.00054295]
[1736348919329,0.18492732,95908.0,95906.0,0.00054295]
[1736348919733,0.19392732,95908.0,95906.0,0.00054295]
[1736348919937,0.009,95908.0,95906.0,0.00054295]
[1736348920137,0.208535,95907.0,95906.0,0.00054295]
[1736348920341,0.01,95908.0,95906.0,0.00054295]
[1736348920700,0.01059996,95952.0,95907.0,0.10429976]
[1736348920905,0.208527,95911.0,95908.0,0.14979624]
[1736348921088,0.208527,95911.0,95909.0,0.10429976]
[1736348921302,0.208527,95911.0,95909.0,0.00576703]
[1736348922139,0.009,95945.0,95910.0,0.10429976]
[1736348922329,0.10429976,95944.0,95911.0,0.14103859]
[1736348922527,0.208521,95914.0,95911.0,0.0467973]
[1736348922836,0.208521,95914.0,95912.0,0.07068]
[1736348923260,0.208521,95914.0,95913.0,0.00574968]
[1736348923403,0.208521,95914.0,95913.0,0.0261101]
[1736348923811,0.208521,95914.0,95913.0,0.02036042]
[1736348924038,0.10829976,95944.0,95913.0,0.02036042]
[1736348924039,0.208497,95925.0,95913.0,0.02036042]
[1736348924211,0.208497,95925.0,95914.0,0.02201404]
[1736348924411,0.208497,95925.0,95914.0,0.00574535]
[1736348925116,0.20935471,96022.0,95914.0,0.00574535]
[1736348925117,0.04008341,96004.0,95940.0,0.1]
[1736348925326,0.04008341,96004.0,95960.0,0.29184392]
[1736348925531,0.208351,95992.0,95960.0,0.39614368]
[1736348925742,0.10429976,95983.0,95961.0,0.07622167]
[1736348925949,0.208333,96000.0,95972.0,0.02095753]
[1736348926155,0.208386,95976.0,95961.0,0.07622167]
[1736348926361,0.208333,96000.0,95961.0,0.07622167]
[1736348926362,0.208374,95981.0,95962.0,0.12192189]
[1736348926563,0.208374,95981.0,95962.0,0.1098371]
[1736348926771,0.208386,95976.0,95963.0,0.07068]
[1736348927041,0.208386,95976.0,95963.0,0.17497976]
[1736348927249,0.208386,95976.0,95964.0,0.00552867]
[1736348927654,0.208396,95971.0,95965.0,0.02810161]
[1736348927854,0.208396,95971.0,95964.0,0.00552867]
[1736348927855,0.208409,95965.0,95964.0,0.00552867]
[1736348928027,0.15,95983.0,95961.0,0.00050797]
[1736348928238,0.208409,95966.0,95964.0,0.02080095]
[1736348929453,0.208409,95966.0,95964.0,0.02180095]
[1736348929712,0.11054766,95984.0,95964.0,0.02180095]
[1736348929859,0.005,95966.0,95965.0,0.01223086]
[1736348930048,0.11054766,95984.0,95965.0,0.22205461]
[1736348930250,0.11054766,95984.0,95966.0,0.10429976]
[1736348930473,0.11054766,95984.0,95967.0,0.00551568]
[1736348930882,0.208396,95971.0,95967.0,0.00551568]
[1736348931087,0.208396,95971.0,95968.0,0.07068]
[1736348931282,0.208396,95971.0,95970.0,0.021387]
[1736348931546,0.11054766,95984.0,95970.0,0.021387]
[1736348931547,0.208375,95981.0,95970.0,0.2311891]
[1736348931761,0.208375,95981.0,95970.0,0.13118945]
[1736348931972,0.208375,95981.0,95970.0,0.2311891]
[1736348932187,0.208394,95972.0,95971.0,0.07068]
[1736348932393,0.208394,95972.0,95970.0,0.02688969]
[1736348932604,0.208394,95972.0,95971.0,0.07617836]
[1736348932819,0.208394,95972.0,95970.0,0.021387]
[1736348933027,0.208394,95972.0,95971.0,0.07617836]
[1736348933225,0.208394,95972.0,95971.0,0.07068]
[1736348933426,0.208394,95972.0,95971.0,0.00549836]
[1736348933662,0.214394,95972.0,95971.0,0.00549836]
[1736348933864,0.208415,95962.0,95937.0,0.09999965]
[1736348934044,0.208415,95962.0,95960.0,0.02127641]
[1736348934285,0.208415,95962.0,95948.0,0.07068]
[1736348935121,0.208415,95962.0,95949.0,0.02050439]
[1736348935122,0.31271476,95962.0,95949.0,0.02050439]
[1736348935328,0.31271476,95962.0,95945.0,0.07068]
[1736348935753,0.31271476,95962.0,95924.0,0.0001706]
[1736348935754,0.46271476,95962.0,95961.0,9.7e-07]
[1736348935965,0.31271476,95962.0,95961.0,9.7e-07]
[1736348936172,0.211415,95962.0,95961.0,9.7e-07]
[1736348936393,0.220415,95962.0,95961.0,0.00100097]
[1736348936597,0.217415,95962.0,95961.0,0.00100097]
[1736348936809,0.212415,95962.0,95961.0,9.7e-07]
[1736348937436,0.15,95981.0,95961.0,9.7e-07]
[1736348937437,0.29192932,96010.0,95962.0,0.1273]
[1736348937614,0.21484742,95984.0,95962.0,0.1273]
[1736348937825,0.208409,95965.0,95963.0,0.07617301]
[1736348938293,0.208395,95972.0,95964.0,0.00690976]
[1736348938511,0.07064,96023.0,95965.0,0.03023834]
[1736348938729,0.208407,95966.0,95965.0,0.03023834]
[1736348938929,0.208407,95966.0,95965.0,0.07064]
[1736348939963,0.215407,95966.0,95965.0,0.07164]
[1736348940168,0.008,95966.0,95965.0,0.07164]
[1736348940582,0.007,95966.0,95965.0,0.07164]
[1736348940968,0.007,95966.0,95965.0,0.17163965]
[1736348941171,0.008,95966.0,95965.0,0.20358308]
[1736348941333,0.001,95966.0,95965.0,0.20258308]
[1736348941831,0.211407,95966.0,95964.0,0.02049363]
[1736348942111,0.209407,95966.0,95965.0,0.07064]
[1736348942286,0.209407,95966.0,95965.0,0.17063965]
[1736348942287,0.003,95966.0,95965.0,0.17063965]
[1736348942605,0.208409,95965.0,95964.0,0.02049363]
[1736348942909,0.31270876,95965.0,95964.0,0.02049363]
[1736348943061,0.208412,95964.0,95961.0,9.7e-07]
[1736348943460,0.416824,95964.0,95961.0,9.7e-07]
[1736348946177,0.208356,95990.0,95970.0,0.09999965]
[1736348946372,0.208394,95972.0,95971.0,0.06908]
[1736348946574,0.208394,95972.0,95971.0,0.07594429]
[1736348946795,0.208394,95972.0,95971.0,0.00686429]
[1736348947000,0.208394,95972.0,95971.0,0.0276936]
[1736348947564,0.208394,95972.0,95971.0,0.03737096]
[1736348948220,0.208336,95999.0,95978.0,0.09999965]
[1736348948418,0.208371,95983.0,95978.0,0.09999965]
[1736348948623,0.208371,95983.0,95978.0,0.10681847]
[1736348948853,0.208371,95983.0,95978.0,0.09999965]
[1736348949065,0.20835,95993.0,95980.0,0.09999965]
[1736348949247,8.54e-05,96004.0,95980.0,0.09999965]
[1736348949442,0.208372,95983.0,95980.0,0.09999965]
[1736348949661,0.208372,95982.0,95980.0,0.09999965]
[1736348949869,0.208372,95982.0,95981.0,0.06904]
[1736348950094,0.208372,95982.0,95981.0,0.08694396]
[1736348950752,0.208372,95982.0,95981.0,0.06904]
[1736348951493,0.208375,95981.0,95978.0,0.09999965]
[1736348951698,0.208375,95981.0,95971.0,0.26300643]
[1736348951699,0.208394,95972.0,95971.0,0.15870667]
[1736348951908,0.208394,95972.0,95971.0,0.05356429]
[1736348952118,0.208394,95972.0,95971.0,0.00686429]
[1736348952376,0.208394,95972.0,95961.0,9.7e-07]
[1736348952377,0.208415,95962.0,95961.0,9.7e-07]
[1736348952592,0.31271476,95962.0,95961.0,9.7e-07]
[1736348952794,0.208415,95962.0,95961.0,9.7e-07]
[1736348953221,0.208415,95962.0,95961.0,0.00763107]
[1736348953602,0.208415,95962.0,95961.0,0.01456032]
[1736348953849,0.215415,95962.0,95961.0,0.01556032]
[1736348954055,0.215415,95962.0,95961.0,0.00100097]
[1736348954278,0.209415,95962.0,95961.0,9.7e-07]
[1736348954485,0.216415,95962.0,95961.0,0.00793022]
[1736348954656,0.216415,95962.0,95961.0,0.00100097]
[1736348954856,0.215415,95962.0,95961.0,0.00100097]
[1736348955855,0.208415,95962.0,95961.0,9.7e-07]
[1736348956065,0.31671476,95962.0,95961.0,9.7e-07]
[1736348956535,0.46271476,95962.0,95961.0,9.7e-07]
[1736348956747,0.46871476,95962.0,95961.0,9.7e-07]
[1736348956943,0.208494,95926.0,95916.0,0.0461]
[1736348957141,0.208494,95926.0,95924.0,0.00067955]
[1736348957142,0.10429976,95925.0,95924.0,0.00067955]
[1736348957382,0.10429976,95925.0,95924.0,0.02140084]
[1736348957603,0.208494,95926.0,95924.0,0.00067955]
[1736348959674,0.219494,95926.0,95924.0,0.00167955]
[1736348959951,0.210494,95926.0,95924.0,0.00067955]
[1736348960172,0.208494,95926.0,95924.0,0.1006792]
[1736348960373,0.217494,95926.0,95924.0,0.1016792]
[1736348960519,0.219494,95926.0,95925.0,0.07624324]
[1736348960900,0.219494,95926.0,95925.0,0.00716324]
[1736348961107,0.217494,95926.0,95924.0,0.00167955]
[1736348962137,0.208424,95958.0,95937.0,0.09999965]
[1736348962348,0.208424,95958.0,95925.0,0.15409976]
[1736348962349,0.09302916,95955.0,95940.0,0.0805]
[1736348962548,0.208459,95942.0,95941.0,0.06908]
[1736348962706,0.208459,95942.0,95940.0,0.0805]
[1736348962909,0.208459,95942.0,95941.0,0.06908]
[1736348963501,0.208459,95942.0,95941.0,0.07613922]
[1736348963683,0.217459,95942.0,95941.0,0.07713922]
[1736348964066,0.217459,95942.0,95941.0,0.09374099]
[1736348964067,0.208459,95942.0,95941.0,0.09374099]
[1736348964299,0.18780485,95990.0,95957.0,0.09999965]
[1736348964509,0.18780485,95990.0,95941.0,0.19804075]
[1736348964510,0.09302916,95975.0,95969.0,0.09999965]
[1736348964701,0.09302916,95975.0,95970.0,0.06908]
[1736348964923,0.09302916,95975.0,95974.0,0.09999965]
[1736348965129,0.01144374,95978.0,95977.0,0.19999965]
[1736348965330,0.09317975,96003.0,96002.0,0.09999965]
[1736348965525,0.09317975,96003.0,96002.0,0.16907965]
[1736348965748,0.09317975,96003.0,96002.0,0.06908]
[1736348966086,0.09317975,96003.0,96002.0,0.18598762]
[1736348966510,0.2084094,96004.0,96003.0,0.09999965]
[1736348966686,0.2084094,96004.0,96002.0,0.18598762]
[1736348966887,0.2084094,96004.0,96003.0,0.09999965]
[1736348967126,0.2084094,96004.0,96003.0,0.11859841]
[1736348968199,0.208338,95998.0,95995.0,0.09999965]
[1736348968399,0.208338,95998.0,95995.0,0.16907965]
[1736348968513,0.416676,95998.0,95995.0,0.16907965]
[1736348968919,0.416676,95998.0,95995.0,0.06908]
[1736348969233,8.54e-05,96004.0,95991.0,0.06908]
[1736348969234,0.20821358,95997.0,95991.0,0.06908]
[1736348969439,0.0010854,96004.0,95981.0,0.06908]
[1736348969635,0.20837,95983.0,95982.0,0.02478886]
[1736348969836,0.20837,95983.0,95982.0,0.03166306]
[1736348970063,0.20837,95983.0,95982.0,0.0068742]
[1736348970384,0.208381,95978.0,95977.0,0.00050895]
[1736348970558,0.208413,95963.0,95962.0,0.0937086]
[1736348970764,0.208413,95963.0,95961.0,0.06908]
[1736348970978,0.208413,95963.0,95962.0,0.00700411]
[1736348971174,0.208413,95963.0,95962.0,0.03380137]